Cogmind - Beta 15 @@@ ROGUE MODE // 2025.08.18 @ 21:10:41 Player: shapeshifter Result: Destroyed by AG-40296 with Assembled Focal Cannon Performance ------------- Evolutions (3) 1500 Regions Visited (10) 2000 Robots Destroyed (63) 315 Value Destroyed (2122) 2122 Prototype IDs (38) 760 Alien Tech Used (0) 0 Bonus (1803) 1803 TOTAL SCORE: 8500 Bonus ------- Follower Combat Kills 203 Aligned with FarCom 300 Met Imprinter 300 Destroyed Z-Imprinter 1000 Cogmind --------- Core Integrity 0/700 Matter 159/300 Energy 100/100 System Corruption 0% Temperature Hot (253) Movement Treading (250) Ox1 Location -7/Deep Caves Parts ------- > --- POWER (1) -------- (None) > --- PROPULSION (4) --- Armored Treads > --- UTILITY (5) ------ Large Storage Unit Advanced Visual Processing Unit Improved Salvage Targeting Computer Advanced Targeting Computer > --- WEAPON (3) ------- Shock Bomb Launcher > --- INVENTORY (15) --- Zionite Light DM Reactor Experimental Heat Sink Zionite Biocell (600) Zionite Metafield Generator Experimental Reaction Control System Zionite Laser-M Rocket Launcher Makeshift Hammer GAL Module Peak State ------------ > --- POWER ------------ Zionite Light DM Reactor > --- PROPULSION ------- Armored Treads Armored Treads Armored Treads Armored Treads > --- UTILITY ---------- Large Storage Unit Advanced Visual Processing Unit Improved Salvage Targeting Computer Advanced Targeting Computer Experimental Reaction Control System > --- WEAPON ----------- Zionite Laser-M AWS/Thermal > --- INVENTORY -------- Zionite Light DM Reactor Armored Treads Armored Treads Experimental Heat Sink Experimental Heat Sink Zionite Biocell Zionite Metafield Generator Phase Shifter Zionite Weapon Casing Hacking Drone Bay Zionite Laser-S Heavy Particle Cannon Shock Bomb Launcher Rocket Launcher Makeshift Hammer [Rating: 73] Favorites ----------- Power Improved Ion Engine Engine Improved Ion Engine Power Core Micro Nuclear Core Reactor Zionite Light DM Reactor Propulsion Armored Treads Treads Armored Treads Leg Carbon-fiber Leg Wheel Compact Wheel Hover Unit Zionite Glidesys I Utility Large Storage Unit Device Improved Terrain Scanner Storage Large Storage Unit Processor Advanced Visual Processing Unit Protection Medium Reactive Plating Weapon Gauss Rifle Energy Gun Zionite Phaser-S Energy Cannon Heavy Particle Cannon Ballistic Gun Gauss Rifle Ballistic Cannon Mini Assault Cannon Launcher Rocket Launcher Special Weapon Mining Laser Impact Weapon Makeshift Hammer Build | -11 -10 -10 -10 -9 -8 -7 -7 -7 -7 -7 ------- Run | Yrd Mat Min Exi Min Mat Fac Low Low Zio Dee Slots Evolved 6 | . . . . . 4 2 . . . . Power . | . . . . . . . . . . . Propulsion 2 | . . . . . 2 . . . . . Utility 3 | . . . . . 2 1 . . . . Weapon 1 | . . . . . . 1 . . . . Parts Attached 71 | 7 . 3 3 2 14 6 5 . 3 28 Power 6 | 1 . . . 1 . . 2 . . 2 Engine 3 | 1 . . . 1 . . 1 . . . Core 1 | . . . . . . . 1 . . . Reactor 2 | . . . . . . . . . . 2 Propulsion 15 | 2 . . 2 . 3 4 . . . 4 Treads 9 | 2 . . . . 2 4 . . . 1 Leg 2 | . . . . . 1 . . . . 1 Wheel 2 | . . . 2 . . . . . . . Hover 2 | . . . . . . . . . . 2 Flight . | . . . . . . . . . . . Utility 26 | 2 . 1 1 1 5 1 3 . 1 11 Device 9 | 1 . . . . . . 1 . . 7 Storage 5 | 1 . 1 1 . 1 . . . . 1 Processor 4 | . . . . . 2 . 1 . 1 . Hackware . | . . . . . . . . . . . Protection 8 | . . . . 1 2 1 1 . . 3 Artifact . | . . . . . . . . . . . Weapon 24 | 2 . 2 . . 6 1 . . 2 11 Energy Gun 11 | 2 . . . . . . . . . 9 Energy Cannon 2 | . . . . . . 1 . . . 1 Ballistic Gun 4 | . . 1 . . 3 . . . . . Ballistic Cannon 1 | . . . . . . . . . 1 . Launcher 4 | . . 1 . . 2 . . . . 1 Special Weapon 1 | . . . . . . . . . 1 . Impact Weapon 1 | . . . . . 1 . . . . . Slashing Weapon . | . . . . . . . . . . . Piercing Weapon . | . . . . . . . . . . . Special Melee Weapon . | . . . . . . . . . . . Unidentified Prototypes 15 | . . . . . . . . . 1 14 Parts Lost 30 | . . 2 . . 5 . 4 2 . 17 Power 3 | . . . . . . . 1 . . 2 Propulsion 9 | . . 1 . . 3 . . . . 5 Utility 6 | . . . . . 1 . 2 . . 3 Weapon 12 | . . 1 . . 1 . 1 2 . 7 Highest Loss Streak 9 | . . 1 . . 3 . 3 2 . 9 To Critical Strikes . | . . . . . . . . . . . Average Backups 11 | 6 7 7 7 11 13 13 13 11 12 11 Power . | . 1 1 1 1 1 1 . . . 1 Propulsion 1 | 3 2 2 1 1 . 1 2 2 2 1 Utility 3 | . 1 2 3 5 5 3 2 2 3 4 Weapon 5 | 1 2 2 2 3 7 7 8 7 6 5 Tool/Special . | . . . . . . . . . . . Unused Backups 17 | . 2 . . 2 4 2 . . 2 5 Power 5 | . . . . 1 1 1 . . . 2 Propulsion 2 | . 2 . . . . . . . . . Utility 5 | . . . . . 1 1 . . 1 2 Weapon 5 | . . . . 1 2 . . . 1 1 Tool/Special . | . . . . . . . . . . . Average Slot Usage (%) 93 | . 100 93 92 100 88 84 88 92 95 94 Engine 5 | . 14 14 14 14 9 7 5 . . . Core 1 | . . . . . . . . 7 7 1 Reactor 1 | . . . . . . . . . . 5 Treads 22 | . 28 24 6 . 17 22 30 30 30 29 Wheel 5 | . . . 14 28 10 2 . . . . Device 5 | . 14 14 14 3 . . 3 7 7 2 Storage 9 | . 14 14 14 14 9 7 7 7 7 7 Processor 12 | . . . . . 13 15 17 15 15 23 Protection 5 | . . . . 10 9 7 . 7 7 3 Energy Gun 3 | . 28 1 . . . . . . . 11 Energy Cannon 1 | . . . . . . 4 7 5 . . Ballistic Gun 9 | . . 10 14 14 13 15 13 7 7 1 Launcher 6 | . . 13 14 14 3 . . 2 7 3 Peak Build Rating 73 | 8 8 8 10 14 31 43 42 42 48 73 Average Rating 33 | 5 7 7 7 12 25 37 37 40 42 60 On Entrance 22 | . 8 8 7 10 14 26 41 41 40 48 Naked Turns . | . . . . . . . . . . . Heaviest Build 219 | 13 13 19 29 39 219 55 56 56 59 58 Greatest Support 80 | 40 40 40 26 26 60 80 80 80 80 80 Greatest Overweight (x) 13 | . . . 1 1 13 2 . . . 1 Average Overweight (x) . | . . . . 1 1 . . . . . Largest Inventory Capacity 35 | 8 8 10 15 15 35 15 15 15 15 15 Average Capacity 14 | 7 8 8 12 15 18 15 15 15 15 15 Most Carried 24 | 8 8 8 11 15 24 15 15 13 15 15 Average Carried 12 | 6 7 7 8 14 15 14 14 12 13 13 Final Capacity 15 | 8 8 10 15 15 15 15 15 15 15 15 Final Carried 15 | 8 8 8 11 15 15 15 13 11 15 9 Class Distribution -------------------- 59% | Mutant 16% | Skirmisher 14% | Gunner 4% | Bomber 3% | Scavenger-Gunner Dominant Class ---------------- Mutant | -10/Materials Mutant | -10/Mines Mutant | -10/Exiles Mutant | -9/Mines Mutant | -8/Materials Skirmisher | -7/Factory Bomber | -7/Lower Caves Mutant | -7/Lower Caves Mutant | -7/Zion Gunner | -7/Deep Caves Resources | -11 -10 -10 -10 -9 -8 -7 -7 -7 -7 -7 ----------- Run | Yrd Mat Min Exi Min Mat Fac Low Low Zio Dee Matter Collected 1997 | 260 . 120 10 147 438 31 381 47 156 407 Remotely . | . . . . . . . . . . . Salvage Created 2194 | 58 . 51 . 273 723 31 276 81 . 701 Parts 145 | 8 . 3 . 15 55 3 9 2 . 50 Haulers Intercepted 2 | . . . . . 2 . . . . . Recyclers Shooed 1 | . . . . . 1 . . . . . Parts Field Recycled . | . . . . . . . . . . . Retrieved Matter . | . . . . . . . . . . . Parts Self-Destructed 10 | . . . . . . . 9 1 . . Prevented . | . . . . . . . . . . . Kills | -11 -10 -10 -10 -9 -8 -7 -7 -7 -7 -7 ------- Run | Yrd Mat Min Exi Min Mat Fac Low Low Zio Dee Combat Hostiles Destroyed 75 | . . 19 . 9 17 1 8 4 . 17 Guns 26 | . . . . 2 5 1 6 1 . 11 Cannons 2 | . . . . . . . 2 . . . AOE 47 | . . 19 . 7 12 . . 3 . 6 Classes Destroyed 14 | 1 . 2 . 2 4 . 2 1 . 2 Builder 2 | . . . . . 2 . . . . . Tunneler 4 | 3 . 1 . . . . . . . . Hauler 2 | . . . . . 2 . . . . . Watcher 3 | . . . . . 3 . . . . . Swarmer 12 | . . 2 . . 7 . 3 . . . Grunt 20 | . . . . 8 7 1 2 2 . . Brawler 1 | . . . . . . . 1 . . . Duelist 1 | . . . . . . . 1 . . . Protector 1 | . . . . 1 . . . . . . Sentry 5 | . . . . . 3 . 1 1 . . Hunter 1 | . . . . . . . . 1 . . Z-Technician 5 | . . . . . . . . . . 5 Z-Light 10 | . . . . . . . . . . 10 Assembled 23 | . . 17 . . . . . . . 6 Best Kill Streak 17 | 1 . 17 . 4 10 1 5 4 . 5 Combat Bots Only 17 | . . 17 . 4 9 1 5 4 . 5 Max Kills in Single Turn 4 | 1 . 4 . 3 3 1 1 2 . 2 Gunslinging . | . . . . . . . . . . . Exploded 4 | . . 4 . 3 2 . . 2 . 2 Melee . | . . . . . . . . . . . Uniques/NPCs Destroyed 1 | . . . . . . . . . . 1 Z-Imprinter (-7/Deep Caves) Combat | -11 -10 -10 -10 -9 -8 -7 -7 -7 -7 -7 -------- Run | Yrd Mat Min Exi Min Mat Fac Low Low Zio Dee Hostile Shots Fired 422 | . . 32 . 14 48 8 94 94 . 132 Missed 105 | . . 13 . 4 13 1 19 28 . 27 Hits 317 | . . 19 . 10 35 7 75 66 . 105 Melee 9 | . . 2 . . . . 7 . . . Projectile 308 | . . 17 . 10 35 7 68 66 . 105 AOE 2 | . . 2 . . . . . . . . Critical Strikes 6 | . . . . . 1 1 4 . . . Actively Blocked 1 | . . . . . 1 . . . . . Damage Taken 6687 | . . 412 . 197 569 105 1428 480 . 3496 Core 834 | . . 50 . 52 31 . 136 21 . 544 Absorbed by Shields . | . . . . . . . . . . . Redirected to Shielding 235 | . . . . . 43 . . . . 192 Ignored by Resistances 124 | . . . . . . . . 124 . . Regen/Repaired (Parts) 1267 | . . . . . . . . . 1267 . Core Remaining (%) 84 | 100 . . . 59 94 . . . . . Volleys Fired 180 | 11 . 10 . 12 50 3 28 13 . 53 Largest 3 | 2 . 1 . 2 2 3 2 2 . 3 Hottest 219 | 90 . 30 . 50 69 125 100 108 . 219 Shots Fired 343 | 22 . 10 . 16 88 7 52 19 . 129 Gun 276 | 22 . . . 9 72 6 42 5 . 120 Cannon 12 | . . . . . . 1 10 1 . . Launcher 55 | . . 10 . 7 16 . . 13 . 9 Special . | . . . . . . . . . . . Kinetic 150 | . . . . 9 72 6 42 5 . 16 Thermal 108 | 11 . . . . . 1 10 1 . 85 Explosive 44 | . . 10 . 7 5 . . 13 . 9 Electromagnetic 22 | 11 . . . . 11 . . . . . Phasic 19 | . . . . . . . . . . 19 Robot Hit Streak 21 | 2 . 8 . 5 6 6 8 11 . 21 Robot Miss Streak 5 | 5 . 1 . 2 5 3 5 1 . 2 Penetration Max 1 | . . . . . 1 . . . . . Secondary Targets . | . . . . . . . . . . . Autonomous 57 | . . . . . . . . . . 57 Shots Hit Robots 237 | 8 . 8 . 12 56 6 39 17 . 91 Core Hits 179 | 3 . 45 . 14 41 2 21 10 . 43 Critical Kills . | . . . . . . . . . . . Critical Parts Destroyed . | . . . . . . . . . . . Critical Strikes 1 | . . . . . . . . . . 1 Intensify 1 | . . . . . . . . . . 1 Melee Attacks 6 | . . . . . 6 . . . . . Impact 6 | . . . . . 6 . . . . . Slashing . | . . . . . . . . . . . Piercing . | . . . . . . . . . . . Sneak Attacks . | . . . . . . . . . . . Combat Hostiles . | . . . . . . . . . . . Follow-up Attacks . | . . . . . . . . . . . Damage Inflicted 8694 | 104 . 1187 . 572 1776 140 836 517 . 3562 Guns 4564 | 104 . . . 75 1039 115 686 60 . 2485 Cannons 200 | . . . . . . 25 150 25 . . Explosions 3930 | . . 1187 . 497 737 . . 432 . 1077 Melee . | . . . . . . . . . . . Ramming . | . . . . . . . . . . . Kinetic 2133 | . . . . 75 1039 115 686 60 . 158 Thermal 2246 | 62 . . . . 53 25 150 25 . 1931 Explosive 3496 | . . 1187 . 497 303 . . 432 . 1077 Electromagnetic 423 | 42 . . . . 381 . . . . . Impact . | . . . . . . . . . . . Slashing . | . . . . . . . . . . . Piercing . | . . . . . . . . . . . Phasic 396 | . . . . . . . . . . 396 Highest Corruption . | . . . . . . . . . . . Average Corruption . | . . . . . . . . . . . Corruption Purged . | . . . . . . . . . . . Corruption Blocked . | . . . . . . . . . . . Overload Shots . | . . . . . . . . . . . Overflow Damage 66 | . . 9 . . 18 . . . . 39 Projectiles . | . . . . . . . . . . . Explosions 66 | . . 9 . . 18 . . . . 39 Melee . | . . . . . . . . . . . Knockbacks . | . . . . . . . . . . . Impact . | . . . . . . . . . . . Kinetic . | . . . . . . . . . . . Secondary . | . . . . . . . . . . . Self-Inflicted Damage 180 | . . 95 . 37 28 . . . . 20 Shots 10 | . . 5 . 1 1 . . . . 3 Rammed . | . . . . . . . . . . . Targets Rammed . | . . . . . . . . . . . Kicked . | . . . . . . . . . . . Crushed . | . . . . . . . . . . . Highest Temperature 322 | 150 . 15 . 39 13 84 236 54 . 322 Average Temperature 67 | 50 . 10 . 16 2 58 98 21 . 94 Received Heat Transfer 1697 | . . 20 . 93 198 45 396 126 . 819 Effects 1 | . . . . . . . . . . 1 Energy Bleed 1 | . . . . . . . . . . 1 Siege Activations . | . . . . . . . . . . . Martial Activations . | . . . . . . . . . . . Shielding Activations . | . . . . . . . . . . . Robots Disrupted . | . . . . . . . . . . . Combat Hostiles . | . . . . . . . . . . . Robots Corrupted . | . . . . . . . . . . . Combat Hostiles . | . . . . . . . . . . . Parts Fried 1 | . . . . . 1 . . . . . Impact Corruptions . | . . . . . . . . . . . Robots Melted . | . . . . . . . . . . . Combat Hostiles . | . . . . . . . . . . . Parts Melted 2 | . . . . . . . . . . 2 Heat Transferred 2528 | 185 . . . . 100 37 222 37 . 1947 Parts Sabotaged . | . . . . . . . . . . . Parts Stolen . | . . . . . . . . . . . Parts Stripped . | . . . . . . . . . . . Power Chain Reactions 4 | . . . . . 4 . . . . . Alert | -11 -10 -10 -10 -9 -8 -7 -7 -7 -7 -7 ------- Run | Yrd Mat Min Exi Min Mat Fac Low Low Zio Dee Maximum Alert Level 1 | . . . . . 1 . . . . . Low Security (%) 96 | 100 100 100 . 100 87 100 . . . . Level 1 3 | . . . . . 12 . . . . . Level 2 . | . . . . . . . . . . . Level 3 . | . . . . . . . . . . . Level 4 . | . . . . . . . . . . . Level 5 . | . . . . . . . . . . . High Security . | . . . . . . . . . . . Max Security . | . . . . . . . . . . . Peak Influence 347 | 5 . 104 . 188 347 151 . . . . Initial 151 | . . . . . 41 151 . . . . Average 42 | . . 15 . 54 50 76 . . . . Influence Increases 1476 | 15 . 150 . 367 624 60 170 90 . . Destroy 0b10 Robot/C 940 | . . 60 . 240 380 20 160 80 . . Destroy 0b10 Robot/NC 60 | 15 . 5 . 5 35 . . . . . Destroy Leader 170 | . . 10 . 40 90 10 10 10 . . Allied During Kill 31 | . . 8 . 20 3 . . . . . Successful Hack 14 | . . . . . 14 . . . . . Disable Machine 60 | . . 15 . 15 30 . . . . . Destroy Structure 141 | . . 52 . 47 42 . . . . . Lose Combat Pursuer 60 | . . . . . 30 30 . . . . Influence Decreases 1476 | 15 . 150 . 259 397 354 191 80 30 . Entered New Map 301 | . . . . . 67 184 16 4 30 . Time Decay 1052 | 15 . 120 . 226 310 170 155 56 . . Lost Part 70 | . . 10 . . 20 . 20 20 . . Lost Ally 53 | . . 20 . 33 . . . . . . Squads Dispatched 9 | . 1 . . 1 3 4 . . . . Investigation 3 | . . . . . 1 2 . . . . Extermination 1 | . . . . . . 1 . . . . Reinforcement 4 | . 1 . . . 2 1 . . . . Assault 1 | . . . . 1 . . . . . . Garrison . | . . . . . . . . . . . Intercept . | . . . . . . . . . . . Searches Triggered . | . . . . . . . . . . . Construction Impeded . | . . . . . . . . . . . Haulers Reinforced . | . . . . . . . . . . . Active Scanning Responses . | . . . . . . . . . . . Cargo Convoy Interrupts . | . . . . . . . . . . . Stealth | -11 -10 -10 -10 -9 -8 -7 -7 -7 -7 -7 --------- Run | Yrd Mat Min Exi Min Mat Fac Low Low Zio Dee Distress Signals 2 | . 1 . . . 1 . . . . . Communications Jammed . | . . . . . . . . . . . Distress Signals . | . . . . . . . . . . . Times Spotted 110 | . 4 21 . 12 31 8 8 4 . 22 Peak Tracking Total 17 | . 2 17 . 5 7 3 5 4 . 6 Tactical Retreats 3 | . . . . . 2 1 . . . . Traps | -11 -10 -10 -10 -9 -8 -7 -7 -7 -7 -7 ------- Run | Yrd Mat Min Exi Min Mat Fac Low Low Zio Dee Traps Triggered 2 | . . . . . 2 . . . . . Indirectly . | . . . . . . . . . . . Trap Hack Attempts . | . . . . . . . . . . . Triggered . | . . . . . . . . . . . Disarmed . | . . . . . . . . . . . Reprogrammed . | . . . . . . . . . . . Reused . | . . . . . . . . . . . Traps Extracted . | . . . . . . . . . . . Installed . | . . . . . . . . . . . Triggered . | . . . . . . . . . . . Machines | -11 -10 -10 -10 -9 -8 -7 -7 -7 -7 -7 ---------- Run | Yrd Mat Min Exi Min Mat Fac Low Low Zio Dee Machines Disabled 6 | . . 1 . 1 2 . 1 . . 1 Max in Single Turn 2 | . . 1 . 1 2 . 1 . . 1 Garrison Access 1 | . . . . . 1 . . . . . Machines Repaired . | . . . . . . . . . . . Machines Dismantled . | . . . . . . . . . . . Machines Sabotaged . | . . . . . . . . . . . Overloaded Fab Kills . | . . . . . . . . . . . Hacking | -11 -10 -10 -10 -9 -8 -7 -7 -7 -7 -7 --------- Run | Yrd Mat Min Exi Min Mat Fac Low Low Zio Dee Machines Accessed 11 | . 1 . 4 . 3 3 . . . . Terminals 5 | . 1 . . . 2 2 . . . . Fabricators . | . . . . . . . . . . . Repair Stations . | . . . . . . . . . . . Recycling Units 1 | . . . . . . 1 . . . . Scanalyzers . | . . . . . . . . . . . Garrison Access 1 | . . . . . 1 . . . . . Total Hacks 23 | . 3 . 6 . 5 9 . . . . Successful 10 | . 1 . 6 . 2 1 . . . . Failed 13 | . 2 . . . 3 8 . . . . Catastrophic 2 | . . . . . 1 1 . . . . Database Lockouts . | . . . . . . . . . . . Manual 12 | . 3 . 1 . 4 . . . 4 . Terminals 14 | . 3 . . . 4 7 . . . . Fabricators . | . . . . . . . . . . . Repair Stations . | . . . . . . . . . . . Recycling Units 2 | . . . . . . 2 . . . . Scanalyzers . | . . . . . . . . . . . Garrison Access 1 | . . . . . 1 . . . . . Terminal Hacks 6 | . . . 6 . . . . . . . Record 5 | . . . 5 . . . . . . . Proto ID Catalog 1 | . . . 1 . . . . . . . Fabricator Hacks . | . . . . . . . . . . . Repair Station Hacks . | . . . . . . . . . . . Recycling Unit Hacks 1 | . . . . . . 1 . . . . Retrieve Matter 1 | . . . . . . 1 . . . . Scanalyzer . | . . . . . . . . . . . Garrison Access Hacks 1 | . . . . . 1 . . . . . Seal Access 1 | . . . . . 1 . . . . . Unauthorized Hacks 2 | . 1 . . . 1 . . . . . Terminals 2 | . 1 . . . 1 . . . . . Botnet 2 | . 1 . . . 1 . . . . . Fabricators . | . . . . . . . . . . . Repair Stations . | . . . . . . . . . . . Recycling Units . | . . . . . . . . . . . Scanalyzers . | . . . . . . . . . . . Garrison Access . | . . . . . . . . . . . Data Cores Recovered . | . . . . . . . . . . . Used . | . . . . . . . . . . . Hacking Detections 5 | . 1 . . . 2 2 . . . . Full Trace Events 3 | . 1 . . . . 2 . . . . Feedback Events . | . . . . . . . . . . . Feedback Blocked . | . . . . . . . . . . . Robot Schematics Acquired 3 | . . . . . . . . . 3 . Robots Built . | . . . . . . . . . . . Authchips . | . . . . . . . . . . . Time . | . . . . . . . . . . . Total Robot Build Rating . | . . . . . . . . . . . Part Schematics Acquired 14 | . . . . . . . . . 14 . Parts Built . | . . . . . . . . . . . Authchips . | . . . . . . . . . . . Time . | . . . . . . . . . . . Total Part Build Rating . | . . . . . . . . . . . Parts Repaired . | . . . . . . . . . . . Time . | . . . . . . . . . . . Parts Recycled . | . . . . . . . . . . . Recycled Matter . | . . . . . . . . . . . Retrieved Matter . | . . . . . . . . . . . Retrieved Components . | . . . . . . . . . . . Parts Scanalyzed . | . . . . . . . . . . . Part Schematics Acquired . | . . . . . . . . . . . Parts Damaged . | . . . . . . . . . . . Bothacking | -11 -10 -10 -10 -9 -8 -7 -7 -7 -7 -7 ------------ Run | Yrd Mat Min Exi Min Mat Fac Low Low Zio Dee Used RIF Installer . | . . . . . . . . . . . Robots Hacked . | . . . . . . . . . . . Non-combat . | . . . . . . . . . . . Combat . | . . . . . . . . . . . Robot Hacks Applied . | . . . . . . . . . . . Relay Couplers Released . | . . . . . . . . . . . Fabnet Peak Effective % . | . . . . . . . . . . . Robots Rewired . | . . . . . . . . . . . Allies Hacked . | . . . . . . . . . . . Hacks Repelled . | . . . . . . . . . . . Allies | -11 -10 -10 -10 -9 -8 -7 -7 -7 -7 -7 -------- Run | Yrd Mat Min Exi Min Mat Fac Low Low Zio Dee Total Allies 6 | . . 2 . 4 . . . . . . Largest Group 3 | . . 2 1 3 1 . . . . . Highest-Rated Group 47 | . . 45 31 47 31 . . . . . Highest-Rated Ally 31 | . . 31 31 31 31 . . . . . Total Orders . | . . . . . . . . . . . Ally Attacks 55 | . . 5 . 33 17 . . . . . Total Damage 571 | . . 21 . 277 273 . . . . . Kills 7 | . . 1 . 4 2 . . . . . Allies Corrupted . | . . . . . . . . . . . Allies Melted . | . . . . . . . . . . . Intel | -11 -10 -10 -10 -9 -8 -7 -7 -7 -7 -7 ------- Run | Yrd Mat Min Exi Min Mat Fac Low Low Zio Dee Active Infowar (turns) 6641 | 22 122 545 580 161 741 356 802 244 1434 1634 Optics 5211 | . . . . . 741 356 802 244 1434 1634 Terrain 2107 | . . . . . . . 431 244 1432 . Seismic 1430 | 22 122 545 580 161 . . . . . . Robot Analysis Total . | . . . . . . . . . . . Derelict Logs Recovered 5 | . . 2 . 1 . . . . 2 . Drone Launches . | . . . . . . . . . . . Drone Recoveries . | . . . . . . . . . . . Exploration | -11 -10 -10 -10 -9 -8 -7 -7 -7 -7 -7 ------------- Run | Yrd Mat Min Exi Min Mat Fac Low Low Zio Dee Turns Passed 7621 | 201 122 545 580 790 913 356 802 244 1434 1634 Spaces Moved 4388 | 98 75 321 457 638 417 206 398 124 837 817 Core 8 | 8 . . . . . . . . . . Treads 3240 | 90 75 321 169 . 279 130 398 124 837 817 Legs . | . . . . . . . . . . . Wheels 1140 | . . . 288 638 138 76 . . . . Hover . | . . . . . . . . . . . Flight . | . . . . . . . . . . . Fastest Speed 50 | 50 160 160 105 105 105 130 170 170 170 170 Average Speed 154 | 151 160 160 125 105 168 155 170 170 170 172 Slowest Speed 295 | 160 160 160 160 105 295 250 170 170 170 250 Overloaded Moves . | . . . . . . . . . . . Propulsion Burnouts . | . . . . . . . . . . . Robots Hopped . | . . . . . . . . . . . Potential Cave-ins . | . . . . . . . . . . . Cave-ins Triggered . | . . . . . . . . . . . Exploration Rate (%) 53 | 8 23 76 78 97 48 7 51 29 86 86 Regions Visited 10 Branch Regions 7 Pre-discovered Areas 4 | . . 2 1 . . . . . 1 . Known Exits Taken . | . . . . . . . . . . . Unknown Exits Taken 10 | 1 1 1 1 1 1 1 1 1 1 . Scrap Searched 11 | . . . . 2 . . 5 1 3 . Spaces Dug 5 | . . . . . 5 . . . . . Terrain Destroyed 280 | . . 74 . 54 48 . . 60 . 44 Melee 5 | . . . . . 5 . . . . . Projectile 5 | . . . . . 1 . . . . 4 AOE 270 | . . 74 . 54 42 . . 60 . 40 Terrain Rammed . | . . . . . . . . . . . Walls Destroyed . | . . . . . . . . . . . Machines Disabled . | . . . . . . . . . . . Actions | -11 -10 -10 -10 -9 -8 -7 -7 -7 -7 -7 --------- Run | Yrd Mat Min Exi Min Mat Fac Low Low Zio Dee Total 4960 | 129 78 343 463 744 531 236 472 138 848 978 Wait 165 | . . 8 . 82 14 8 39 . . 14 Move 4378 | 97 74 320 456 637 416 205 397 123 836 817 Hop . | . . . . . . . . . . . Pick Up 78 | 14 2 1 3 6 13 6 2 . 7 24 Fast Attach 10 | 1 . . . 1 3 4 . . . 1 Attach 37 | 6 . 1 1 . 7 1 4 2 1 14 Detach 7 | . . . . . 2 . . . . 5 Swap 51 | . . 2 2 1 11 2 1 . 2 30 Drop 48 | . 2 1 1 5 9 7 1 . 2 20 Fire 180 | 11 . 10 . 12 50 3 28 13 . 53 Melee 6 | . . . . . 6 . . . . . Ram . | . . . . . . . . . . . Kick . | . . . . . . . . . . . Crush . | . . . . . . . . . . . Escape Stasis . | . . . . . . . . . . . Rewire . | . . . . . . . . . . . Trap . | . . . . . . . . . . . Miscellaneous . | . . . . . . . . . . . Route ------- -11/Scrapyard -10/Materials -10/Mines -10/Exiles -9/Mines (discovered 2 exits: *Mat x2) -8/Materials -7/Factory -7/Lower Caves -7/Lower Caves -7/Zion (discovered 2 exits: [*Dee] / [*Pro]) -7/Deep Caves (discovered 1 exit: [*Pro]) History --------- Turn | Location | Event 29 | -11/Scrapyard | Discovered new exit (range 14) 202 | -11/Scrapyard | Entered Materials 265 | -10/Materials | Discovered new exit (range 12) 316 | -10/Materials | Build established: Mutant 324 | -10/Materials | Entered Mines 325 | -10/Mines | Assembled infested the area 374 | -10/Mines | Destroyed 17 combat bots 376 | -10/Mines | Learned Materials garrison access intel 481 | -10/Mines | Found a damaged Exp. Sensor Array with a note attached 484 | -10/Mines | Found Prototype Device 520 | -10/Mines | Learned location of Zion (-7) 667 | -10/Mines | Learned location of Storage (-7) 863 | -10/Mines | Deemed a non-threat by the Exiles lab entrance 863 | -10/Mines | Discovered new exit (range 5) 869 | -10/Mines | Entered Exiles 869 | -10/Exiles | Accompanied by 1 ally 899 | -10/Exiles | Led the pair of lost Derelicts to a safe place 906 | -10/Exiles | Met 8R-AWN 932 | -10/Exiles | Met EX-HEX 1007 | -10/Exiles | Met EX-DEC 1067 | -10/Exiles | Visited The Gauntlet 1179 | -10/Exiles | Met EX-BIN 1294 | -10/Exiles | Aligned with FarCom system 1296 | -10/Exiles | Given EX-Vault access code 1320 | -10/Exiles | Opened EX-Vault 1328 | -10/Exiles | Found AWS/Thermal 1349 | -10/Exiles | Warned to stay clear of 0b10 Research branches 1438 | -10/Exiles | Discovered new exit (range 10) 1449 | -10/Exiles | Left Exiles lab with AWS/Thermal 1449 | -10/Exiles | Entered Mines 1505 | -9/Mines | Assisted by bots powering up and referring to "LRC-V3" 1554 | -9/Mines | Discovered new exit (range 4) 1595 | -9/Mines | Found a Scrap Suit stashed away for nefarious purposes 1597 | -9/Mines | Found Scrap Suit 1783 | -9/Mines | Met a Derelict testing a Signal Generator 1844 | -9/Mines | A weapon hastily lodged in a ceiling crevice suddenly fell to the ground 1853 | -9/Mines | Learned Materials terminal intel 1859 | -9/Mines | Discovered new exit (range 10) 1864 | -9/Mines | Received a Rocket Launcher from a helpful Derelict 2239 | -9/Mines | Entered Materials 2239 | -8/Materials | Accompanied by 1 ally 2239 | -8/Materials | Evolved 4 slots: Propulsion x2, Utility x2 2240 | -8/Materials | Loaded intel: 12 terminal locations 2241 | -8/Materials | Loaded intel: 1 garrison access location 2397 | -8/Materials | Lost 3 parts (1n1u1w) 3089 | -8/Materials | Destroyed 9 combat bots 3095 | -8/Materials | Discovered new exit (range 19) 3152 | -8/Materials | Entered Factory 3152 | -7/Factory | Evolved 2 slots: Utility x1, Weapon x1 3443 | -7/Factory | Discovered new exit (range 17) 3508 | -7/Factory | Entered Lower Caves 3810 | -7/Lower Caves | Build established: Bomber 4134 | -7/Lower Caves | Attracted the attention of an 0b10 outpost 4195 | -7/Lower Caves | Lost 3 parts (1p1u1w) 4269 | -7/Lower Caves | Discovered new exit (range 3) 4310 | -7/Lower Caves | Entered another Lower Caves area 4430 | -7/Lower Caves | Build established: Mutant 4468 | -7/Lower Caves | Attracted the attention of an 0b10 checkpoint 4526 | -7/Lower Caves | Discovered new exit (range 16) 4554 | -7/Lower Caves | Entered Zion 4585 | -7/Zion | Given the Hacking Drone Bay 4585 | -7/Zion | Found Prototype Device 4635 | -7/Zion | Discovered new exit (range 19) 4729 | -7/Zion | Acquired unknown access codes intercepted by a Zionite 5117 | -7/Zion | Rebuked by Imprinter 5280 | -7/Zion | Learned Factory security intel 5285 | -7/Zion | Visited the Megawrench Repair Shop 5286 | -7/Zion | Megawrench repaired 11 parts 5572 | -7/Zion | Build established: Skirmisher 5819 | -7/Zion | Found GAL Module 5952 | -7/Zion | Opened final containment barrier to the Deep Caves 5976 | -7/Zion | Discovered new exit (range 5) 5980 | -7/Zion | Saw the warning signs outside the Deep Caves entrance 5988 | -7/Zion | Entered Deep Caves 6220 | -7/Deep Caves | Identified Hacking Drone Bay 6277 | -7/Deep Caves | Attacked by Z-Imprinter 6302 | -7/Deep Caves | Destroyed Z-Imprinter 6376 | -7/Deep Caves | Found Prototype Protection 6377 | -7/Deep Caves | Identified Zio. Weapon Casing 6427 | -7/Deep Caves | Found Prototype Device 6428 | -7/Deep Caves | Identified Zio. Metafield Generator 6462 | -7/Deep Caves | Z-Facility disabled 6630 | -7/Deep Caves | Lost 4 parts (1p3w) 6640 | -7/Deep Caves | Found Prototype Protection 6762 | -7/Deep Caves | Found Zio. Weapon Casing 6855 | -7/Deep Caves | Lost 3 parts (2n1w) 7299 | -7/Deep Caves | Build established: Gunner 7488 | -7/Deep Caves | Discovered new exit (range 6) 7576 | -7/Deep Caves | Spotted AG-40296 7586 | -7/Deep Caves | Core integrity fell below 50% 7612 | -7/Deep Caves | Core integrity fell below 20% 7622 | -7/Deep Caves | Destroyed by AG-40296 with Assembled Focal Cannon Last Messages --------------- 07165_ as-99838 destroyed. 07169_ Acquired 12 matter. 07170_ Acquired 13 matter. 07244_ as-82354 destroyed. 07259_ Acquired 13 matter. 07307_ as-75892 destroyed. 07318_ Acquired 14 matter. 07373_ as-76683 destroyed. 07379_ Acquired 20 matter. 07488_ EXIT=FOUND 07586_ AG-40296: "DSI9AT1D G8OHIBQ29FWG 26R186 QD12WHW8W33 TDK1 81FTS" 07592_ Arm. Treads destroyed. 07605_ Zio. Weapon Casing destroyed. 07608_ AWS/Thermal destroyed. 07618_ Overheating: Energy bleed (-23). 07619_ Arm. Treads destroyed. 07619_ Phase Shifter destroyed. 07619_ Zio. Phaser-S destroyed. 07622_ Zio. Light DM Reactor destroyed. Map ----- +----------------------------------------------------+ | ?????????????????????????????????## ##???? | | ????????????????????????????????## ####????? | | ????????????????????????????????# #???????? | | ????????????????????????????????# ####?#### | | ????????????????????????????????## ### # | | ?????????????????????????????????# | | ?????????????????? l #??????# | | ???????????????? ! ??????# ## | | ????????????? ?????###### | | ??????????? !! g #?????###### | | ????????# !! ! ##????# | | ????????# h ! #????# ## | | ????????# g M #????# #### ### | | ????????# #?#### #??###" #?# | | ????????# [ ### ####### #?# | | ?????????" [ ## #?? | | ?????????" ## ###### #?? | | ?????????" [ g s ### ##???# ### | | ?????????" ### ##???# | | ????????"" ## #???# | | ????????# / ## #???# | | ????????" h l ## ##?### | | ????????" g ########## | | ????????" G # "" | | ????????""" # """ | | ????????" @ " | | ?????????" g ###;# # | | ????????" #???## ### | | ????????"" ##????### ##?? | | ????????" # # #???????## #??? | | ????????" #### ## ## ##????????# ##??? | | ????????""" #????# ?# ####?????????## ##???? | | ?????????" ??????##?# #?????????????####????? | | ?????????###???????????#??????????????????????? | | | | | | | | | | | | | | | | | | | | | | | | | | | | | | | | | +----------------------------------------------------+ Best States ------------- Heat Dissipation 60 Energy Generation 27 Energy Capacity 700 Matter Stores 300 Matter Capacity 300 Sight Range 20 Terrain Scan Range 16 Terrain Scan Density 85 Armor Coverage 600 Resistance: KI 30 Propulsion Shielding 66 Weapon Shielding 100 Phase Shifting 5 Evasion (%) 45 Targeting Accuracy 8 Recoil Reduction 4 Salvage Targeting 2 Item Schematics ----------------- Gauss Cannon | -7/Zion | Archive Imp. System Shield | -7/Zion | Archive Shock Absorption System | -7/Zion | Archive Powered Hammer | -7/Zion | Archive Power Amplifier | -7/Zion | Archive Imp. Corruption Screen | -7/Zion | Archive Antigrav System | -7/Zion | Archive Core Analyzer | -7/Zion | Archive Imp. Hacking Suite | -7/Zion | Archive Imp. Titanium Leg | -7/Zion | Archive IFF Parser | -7/Zion | Archive Lrn. Missile Launcher | -7/Zion | Archive Energy Filter | -7/Zion | Archive Proton Cannon | -7/Zion | Archive Robot Schematics ------------------ S-27 Virus | -7/Zion | Archive R-06 Scavenger | -7/Zion | Archive X-62 Marksman | -7/Zion | Archive Fabricated ------------ Nothing Repaired ---------- Nothing Alien Tech Used ----------------- None Achievements -------------- Are We The Baddies? Exterminator Challenges ------------ None Game ------ Seed ZioniteContainmentLink Manual? 0 Play Time 00:53:13 Cumulative 163.7 hours Start 2025.08.18 @ 20:07:42 End 2025.08.18 @ 21:10:41 Sessions 1 Manual Loads 0 Difficulty Rogue Special Mode None Game No. 268 Rogue 268 Adventurer 0 Explorer 0 Win Type - Total 3 Types 2/0/1/0/0/0/0/0/0/0 Lore% 77 Gallery% 73 Achievement% 53 Wizard Run 0 Options --------- Layout 1 ASCII 0 Keyboard 0 Movement Mouse Keybinds 0 Fullscreen 1 Font 24/Smallcaps Map View 50x35 Zoom Use 0% Tactical HUD 1 Map Filters NONE Filters NONE Steam 1 RUN: fcb6d663-1abf-4cdd-b2c5-0c803a3d8f53